bitfinex-derivatives/quotes_BNBF0:USTF0_20251220
["timestamp","ask_amount","ask_price","bid_price","bid_amount"]
[1766204304363,0.2029764,857.56,856.44,0.86949855]
[1766204307366,0.2029764,857.56,856.45,0.86949855]
[1766204309269,0.2029764,857.56,856.46,0.86949855]
[1766204310369,0.2029764,857.56,856.47,0.86949855]
[1766204312272,0.2029764,857.56,856.48,0.86949855]
[1766204313168,0.2029764,857.56,856.49,0.86949855]
[1766204314272,0.2029764,857.56,856.5,0.86949855]
[1766204315373,0.2029764,857.56,856.51,0.86949855]
[1766204316274,0.2029764,857.56,856.52,0.86949855]
[1766204317277,0.2029764,857.56,856.53,0.86949855]
[1766204318072,0.2029764,857.56,856.54,0.86949855]
[1766204318275,0.2029764,857.56,856.55,0.86949855]
[1766204319177,0.2029764,857.56,856.57,0.86949855]
[1766204320274,1.1671023,857.52,856.62,0.86949855]
[1766204321279,1.1671023,857.51,856.63,0.86949855]
[1766204334789,54.1962334,857.48,856.63,0.86949855]
[1766204348501,54.1962334,857.48,856.64,0.86949855]
[1766204353705,54.1962334,857.48,856.63,0.86949855]
[1766204360417,54.1962334,857.48,856.67,0.86949855]
[1766204360617,54.1962334,857.48,856.7,0.86949855]
[1766204361315,54.1962334,857.48,856.69,0.86949855]
[1766204362314,54.1962334,857.48,856.68,0.86949855]
[1766204365217,54.1962334,857.48,856.67,0.86949855]
[1766204370222,54.1962334,857.48,856.66,0.86949855]
[1766204372928,54.1962334,857.48,856.7,0.86949855]
[1766204374226,54.1962334,857.48,856.69,0.86949855]
[1766204377533,54.1962334,857.48,856.67,0.86949855]
[1766204378829,0.87008154,857.43,856.59,0.86949855]
[1766204379027,0.87008154,857.42,856.59,0.86949855]
[1766204380134,10.83482232,857.42,856.59,0.86949855]
[1766204383737,10.83482232,857.42,856.44,1.15938517]
[1766204383738,0.87008154,857.41,856.58,0.86949855]
[1766204384538,0.87008154,857.35,856.51,0.86949855]
[1766204390240,0.87008154,857.36,856.51,0.86949855]
[1766204391241,0.87008154,857.36,856.5,0.86949855]
[1766204398239,0.87008154,857.37,856.5,0.86949855]
[1766204399340,0.87008154,857.37,856.49,0.86949855]
[1766204410346,0.87008154,857.38,856.49,0.86949855]
[1766204411243,0.87008154,857.38,856.48,0.86949855]
[1766204416951,0.20303799,857.26,856.48,0.86949855]
[1766204417251,0.87008154,857.38,856.48,0.86949855]
[1766204418549,0.20303799,857.26,856.48,0.86949855]
[1766204420753,0.20303799,857.26,856.32,1.15938517]
[1766204420956,0.20303799,857.26,856.48,0.87403527]
[1766204426954,0.86960167,857.37,856.48,0.87403527]
[1766204427157,0.20303858,857.26,856.48,0.87403527]
[1766204427457,0.20303858,857.26,856.49,0.87403527]
[1766204430959,0.20303858,857.26,856.51,0.87403527]
[1766204431358,0.20303858,857.26,856.52,0.87403527]
[1766204434259,0.20303858,857.26,856.53,0.87403527]
[1766204436263,0.20303858,857.26,856.54,0.87403527]
[1766204437159,0.20303858,857.26,856.55,0.87403527]
[1766204438264,0.20303858,857.26,856.56,0.87403527]
[1766204440260,0.20303858,857.26,856.57,0.87403527]
[1766204443861,0.20303858,857.26,856.58,0.87403527]
[1766204472980,0.20303858,857.26,856.65,0.87403527]
[1766204473383,0.20303858,857.26,856.64,0.87403527]
[1766204474681,0.20303858,857.26,856.48,1.15938517]
[1766204474982,0.20303858,857.26,856.64,0.87530392]
[1766204475385,0.20303858,857.26,856.63,0.87530392]
[1766204479286,0.20303858,857.26,856.62,0.87530392]
[1766204485590,0.20303858,857.26,856.56,0.87530392]
[1766204527226,0.20303858,857.26,856.57,0.87530392]
[1766204533927,0.20303858,857.26,856.6,0.87530392]
[1766204540229,0.20303858,857.26,856.61,0.87530392]
[1766204545136,0.20303858,857.26,856.46,1.15938517]
[1766204545334,0.20303858,857.26,856.61,0.87545895]
[1766204553243,0.20303858,857.26,856.46,1.15938517]
[1766204553444,0.20303858,857.26,856.61,0.87539238]
[1766204578167,0.20303858,857.26,856.62,0.87539238]
[1766204587867,0.20303858,857.26,856.64,0.87539238]
[1766204591168,0.20303858,857.26,856.65,0.87539238]
[1766204599179,0.20303858,857.26,856.64,0.87539238]
[1766204615197,0.20303858,857.26,856.68,0.87539238]
[1766204615397,52.04532083,857.46,856.68,0.87539238]
[1766204615594,52.04532083,857.46,856.77,0.87539238]
[1766204616293,52.04532083,857.46,856.75,0.87539238]
[1766204616994,52.04532083,857.46,856.82,0.87539238]
[1766204617194,52.04532083,857.46,856.8,0.87539238]
[1766204618394,52.04532083,857.46,856.79,0.87539238]
[1766204619194,52.04532083,857.46,856.78,0.87539238]
[1766204620196,52.04532083,857.46,856.77,0.87539238]
[1766204621200,52.04532083,857.46,856.46,1.73907775]
[1766204621201,52.04532083,857.46,856.76,0.87539238]
[1766204623198,52.04532083,857.46,856.75,0.87539238]
[1766204624102,52.04532083,857.46,856.76,0.87539238]
[1766204624398,52.04532083,857.46,856.75,0.87539238]
[1766204626306,52.04532083,857.46,856.74,0.87539238]
[1766204628307,52.04532083,857.46,856.73,0.87539238]
[1766204632412,52.04532083,857.46,856.72,0.87539238]
[1766204637215,52.04532083,857.46,856.71,0.87539238]
[1766204640121,52.04532083,857.46,856.71,0.87259105]
[1766204648030,52.04532083,857.46,856.75,0.87259105]
[1766204657237,52.04532083,857.46,856.76,0.87259105]
[1766204662239,52.04532083,857.46,856.77,0.87259105]
[1766204665236,52.04532083,857.46,856.78,0.87259105]
[1766204667139,52.04532083,857.46,856.79,0.87259105]
[1766204669244,52.04532083,857.46,856.8,0.87259105]
[1766204670245,52.04532083,857.46,856.81,0.87259105]
[1766204671246,52.04532083,857.46,856.82,0.87259105]
[1766204672348,52.04532083,857.46,856.83,0.87259105]
[1766204673250,52.04532083,857.46,856.84,0.87259105]
[1766204674352,52.04532083,857.46,856.85,0.87259105]
[1766204675153,52.04532083,857.46,856.87,0.87259105]
[1766204675450,52.04532083,857.46,856.89,0.87259105]
[1766204680554,52.04532083,857.46,857.01,0.87259105]
[1766204681459,52.04532083,857.46,857.0,0.87259105]
[1766204682561,52.04532083,857.46,856.99,0.87259105]
[1766204683461,52.04532083,857.46,856.98,0.87259105]
[1766204685463,52.04532083,857.46,856.97,0.87259105]
[1766204685965,52.04532083,857.46,857.07,0.87259105]
[1766204686162,52.04532083,857.46,857.08,0.87383593]
[1766204686661,52.04532083,857.46,857.07,0.87383593]
[1766204687366,52.04532083,857.46,857.05,0.87383593]
[1766204688364,52.04532083,857.46,856.9,1.15938517]
[1766204688365,52.04532083,857.46,857.04,0.87383593]
[1766204690164,52.04532083,857.46,857.03,0.87383593]
[1766204691369,52.04532083,857.46,857.02,0.87383593]
[1766204692368,52.04532083,857.46,857.01,0.87383593]
[1766204694470,52.04532083,857.46,857.0,0.87383593]
[1766204696567,52.04532083,857.46,856.89,0.87383593]
[1766204696772,52.04532083,857.46,856.88,0.87383593]
[1766204697268,1.1671023,858.07,856.88,0.87383593]
[1766204697669,0.20292965,857.78,856.88,0.87383593]
[1766204697870,9.93828163,857.78,856.88,0.87383593]
[1766204702881,9.93828163,857.78,856.89,0.87383593]
[1766204704782,53.33551062,857.7,856.89,0.87383593]
[1766204711186,53.33551062,857.7,856.9,0.87383593]
[1766204717094,53.33551062,857.7,856.75,1.15938517]
[1766204717298,53.33551062,857.7,856.9,0.87255729]
[1766204718098,53.33551062,857.7,856.91,0.87255729]
[1766204718298,53.33551062,857.7,856.9,0.87255729]
[1766204718499,53.33551062,857.7,856.91,0.87255729]
[1766204719700,53.33551062,857.7,856.84,0.87255729]
[1766204723200,53.33551062,857.7,856.85,0.87255729]
[1766204725201,53.33551062,857.7,856.96,0.87255729]
[1766204726603,53.33551062,857.7,856.97,0.87255729]
[1766204728405,53.33551062,857.7,857.01,0.87255729]
[1766204730508,53.33551062,857.7,857.02,0.87255729]
[1766204731206,53.33551062,857.7,857.01,0.87255729]
[1766204731408,53.33551062,857.7,857.02,0.87255729]
[1766204732207,53.33551062,857.7,857.05,0.87255729]
[1766204735608,53.33551062,857.7,857.06,0.87255729]
[1766204739412,53.33551062,857.7,857.07,0.87255729]
[1766204739912,53.33551062,857.7,857.06,0.87255729]
[1766204740308,53.33551062,857.7,857.07,0.87255729]
[1766204744217,53.33551062,857.7,857.06,0.87255729]
[1766204748122,53.33551062,857.7,856.91,1.15938517]
[1766204748319,53.33551062,857.7,857.06,0.87328723]
[1766204753528,53.33551062,857.7,857.1,0.87328723]
[1766204756230,53.33551062,857.7,856.94,1.15938517]
[1766204756429,53.33551062,857.7,857.1,0.87313765]
[1766204757231,53.33551062,857.7,857.09,0.87313765]
[1766204758028,53.33551062,857.7,857.1,0.87313765]
[1766204758226,53.33551062,857.7,857.16,0.87313765]
[1766204758426,53.33551062,857.7,857.0,1.15938517]
[1766204758427,53.33551062,857.7,857.15,0.87313765]
[1766204760329,53.33551062,857.7,857.11,0.87313765]
[1766204761426,53.33551062,857.7,857.06,0.87313765]
[1766204770537,53.33551062,857.7,857.01,0.87313765]
[1766204772237,53.33551062,857.7,857.02,0.87313765]
[1766204779138,53.33551062,857.7,857.03,0.87313765]
[1766204781140,53.33551062,857.7,857.04,0.87313765]
[1766204783042,53.33551062,857.7,857.05,0.87313765]
[1766204784345,53.33551062,857.7,857.06,0.87313765]
[1766204785150,53.33551062,857.7,857.07,0.87313765]
[1766204787050,53.33551062,857.7,857.08,0.87313765]
[1766204793153,53.33551062,857.7,857.07,0.87313765]
[1766204797558,0.20293793,857.66,856.97,0.87313765]
[1766204798258,0.20293793,857.66,856.96,0.87313765]
[1766204798460,0.20293793,857.66,856.91,0.87313765]
[1766204799455,0.20293793,857.66,856.59,6.82220178]
[1766204799456,0.20293793,857.66,856.9,0.87313765]
[1766204800260,0.20293793,857.66,856.89,0.87313765]
[1766204802460,0.20293793,857.66,856.88,0.87313765]
[1766204803961,0.20293793,857.66,856.87,0.87313765]
[1766204804358,0.20293793,857.66,856.86,0.87313765]
[1766204806264,0.20293793,857.66,856.85,0.87313765]
[1766204809167,0.20293793,857.66,856.84,0.87313765]
[1766204813165,0.20293793,857.66,856.83,0.87313765]
[1766204819072,0.20293793,857.66,856.68,1.15938517]
[1766204819073,0.20293793,857.66,856.84,0.87313765]
[1766204823071,0.20293793,857.66,856.8,0.87313765]
[1766204823272,0.20293793,857.66,856.67,0.87313765]
[1766204823776,0.20293793,857.66,856.59,6.82220178]
[1766204824072,0.20293793,857.66,856.67,0.87298699]
[1766204824273,0.20293793,857.66,856.66,0.87298699]
[1766204826476,0.20293793,857.66,856.65,0.87298699]
[1766204828280,0.20293793,857.66,856.64,0.87298699]
[1766204828478,0.20293793,857.66,856.6,0.87298699]
[1766204830486,0.20293793,857.66,856.59,0.87298699]
[1766204831984,0.20293793,857.66,856.59,0.87215799]
[1766204832385,0.20293793,857.66,856.58,0.87215799]
[1766204834089,0.20293793,857.66,856.54,0.87215799]
[1766204834288,0.20293793,857.66,856.53,0.87215799]
[1766204836390,0.20293793,857.66,856.52,0.87215799]
[1766204836887,0.20293793,857.66,856.51,6.76644296]
[1766204838289,0.20293793,857.66,856.51,5.89428497]
[1766204848895,0.20293793,857.66,856.44,0.87215799]
[1766204849192,0.20293793,857.66,856.45,0.87215799]
[1766204849398,0.20293793,857.66,856.43,0.87215799]
[1766204851195,0.20293793,857.66,856.44,0.87215799]
[1766204852099,0.20293793,857.66,856.42,0.87215799]
[1766204852300,0.20293793,857.66,856.4,0.87215799]
[1766204852497,0.20293793,857.66,856.38,0.87215799]
[1766204854200,0.20293793,857.66,856.39,0.87215799]
[1766204854401,0.20293793,857.66,856.38,0.87215799]
[1766204855301,0.20293793,857.66,856.39,0.87215799]
[1766204855501,0.20293793,857.66,856.38,0.87215799]
[1766204856297,0.20293793,857.66,856.39,0.87215799]
[1766204866208,0.20293793,857.66,856.31,0.20301844]
[1766204866209,0.20293793,857.66,856.4,0.87215799]
[1766204866407,0.20293793,857.66,856.39,0.87215799]
[1766204867108,0.20293793,857.66,856.4,0.87215799]
[1766204870209,0.20293793,857.66,856.41,0.87215799]
[1766204872309,1.37004023,857.66,856.42,0.87215799]
[1766204874212,1.1671023,857.65,856.43,0.87215799]
[1766204875210,0.20293793,857.66,856.43,0.87215799]
[1766204875211,1.1671023,857.64,856.43,0.87215799]
[1766204876116,1.1671023,857.64,856.44,0.87215799]
[1766204877218,1.1671023,857.63,856.45,0.87215799]
[1766204878318,1.1671023,857.62,856.46,0.87215799]
[1766204879117,1.1671023,857.61,856.47,0.87215799]
[1766204881323,1.1671023,857.6,856.48,0.87215799]
[1766204882320,1.1671023,857.58,856.5,0.87215799]
[1766204885527,1.1671023,857.57,856.51,0.87215799]
[1766204887328,1.1671023,857.56,856.51,0.87215799]
[1766204888329,1.1671023,857.56,856.52,0.87215799]
[1766204889327,1.1671023,857.55,856.52,0.87215799]
[1766204890326,1.1671023,857.55,856.53,0.87215799]
[1766204892233,1.1671023,857.54,856.54,0.87215799]
[1766204894328,1.1671023,857.53,856.54,0.87215799]
[1766204894533,1.1671023,857.53,856.55,0.87215799]
[1766204898436,1.1671023,857.52,856.56,0.87215799]
[1766204901248,1.1671023,857.51,856.56,0.87215799]
[1766204902445,1.1671023,857.51,856.57,0.87215799]
[1766204906546,1.1671023,857.5,856.57,0.87215799]
[1766204907453,1.1671023,857.5,856.58,0.87215799]
[1766204909251,1.1671023,857.49,856.58,0.87215799]
[1766204909456,1.1671023,857.49,856.59,0.87215799]
[1766204911552,1.1671023,857.48,856.6,0.87215799]
[1766204924473,1.1671023,857.48,856.61,0.87215799]
[1766204932480,1.1671023,857.53,856.66,0.87215799]
[1766204933484,1.1671023,857.55,856.65,0.87215799]
[1766204935384,1.1671023,857.55,856.64,0.87215799]
[1766204936086,1.1671023,857.57,856.66,0.87215799]
[1766204936386,1.1671023,857.58,856.66,0.87215799]
[1766204938483,1.1671023,857.59,856.65,0.87215799]
[1766204938688,1.1671023,857.58,856.65,0.87215799]
[1766204939389,1.1671023,857.59,856.65,0.87215799]
[1766204941693,1.1671023,857.6,856.66,0.87215799]
[1766204943195,1.1671023,857.61,856.65,0.87215799]
[1766204947199,1.1671023,857.62,856.65,0.87215799]
[1766204947399,1.1671023,857.62,856.64,0.87215799]
[1766204949800,41.48830627,857.58,856.64,0.87215799]
[1766204950000,49.06956314,857.58,856.64,0.87215799]
[1766204953300,49.06956314,857.58,856.63,0.87215799]
[1766204954504,49.06956314,857.58,856.64,0.87215799]
[1766204955206,49.06956314,857.58,856.63,0.87215799]
[1766204964412,49.06956314,857.58,856.64,0.87215799]
[1766204965011,49.06956314,857.58,856.68,0.87215799]
[1766204965508,49.06956314,857.58,856.73,0.87215799]
[1766204966713,49.06956314,857.58,856.79,0.87215799]
[1766204967115,49.06956314,857.58,856.78,0.87215799]
[1766204968115,49.06956314,857.58,856.77,0.87215799]
[1766204969213,49.06956314,857.58,856.76,0.87215799]
[1766204971117,49.06956314,857.58,856.75,0.87215799]
[1766204973219,49.06956314,857.58,856.74,0.87215799]
[1766204973415,49.06956314,857.58,856.75,0.87215799]
[1766204974215,49.06956314,857.58,856.74,0.87215799]
[1766204977221,49.06956314,857.58,856.73,0.87215799]
[1766204983324,49.06956314,857.58,856.72,0.87215799]
[1766204984525,49.06956314,857.58,856.73,0.87215799]
[1766204985223,49.06956314,857.58,856.72,0.87215799]
[1766204985426,49.06956314,857.58,856.73,0.87215799]
[1766204986125,49.06956314,857.58,856.72,0.87215799]
[1766204986325,49.06956314,857.58,856.73,0.87215799]
[1766204992428,49.06956314,857.58,856.74,0.87215799]
[1766204997828,0.20298706,857.46,856.74,0.87215799]
[1766205005133,0.20298706,857.46,856.75,0.87215799]
[1766205010334,0.20298706,857.46,856.76,0.87215799]
[1766205010938,49.06956314,857.58,856.76,0.87215799]
[1766205011137,49.06956314,857.58,856.82,0.87215799]
[1766205011637,0.20297048,857.56,856.82,0.87215799]
[1766205011937,0.20297048,857.56,856.81,0.87215799]
[1766205012332,0.20297048,857.56,856.73,0.87215799]
[1766205013234,0.20297048,857.56,856.72,0.87215799]
[1766205016138,0.20297048,857.56,856.73,0.87215799]
[1766205019145,0.20297048,857.56,856.74,0.87215799]
[1766205021150,0.20297048,857.56,856.75,0.87215799]
[1766205022150,0.20297048,857.56,856.76,0.87215799]
[1766205024152,0.20297048,857.56,856.77,0.87215799]
[1766205025247,0.20297048,857.56,856.78,0.87215799]
[1766205032358,0.20297048,857.56,856.77,0.87215799]
[1766205033556,0.20297048,857.56,856.79,0.87215799]
[1766205033760,0.20297048,857.56,856.85,0.87215799]
[1766205039666,0.20297048,857.56,856.9,0.87215799]
[1766205040362,0.20297048,857.56,856.89,0.87215799]
[1766205042165,49.06956314,857.58,856.89,0.87215799]
[1766205042370,49.06956314,857.58,856.91,0.87215799]
[1766205043469,49.06956314,857.58,856.9,0.87215799]
[1766205046367,49.06956314,857.58,856.89,0.87215799]
[1766205050374,49.06956314,857.58,856.88,0.87215799]
[1766205050674,49.06956314,857.58,856.92,0.87215799]
[1766205051373,49.06956314,857.58,856.97,0.87215799]
[1766205053370,49.06956314,857.58,856.96,0.87215799]
[1766205054371,49.06956314,857.58,857.01,0.87215799]
[1766205055374,49.06956314,857.58,857.0,0.87215799]
[1766205056376,49.06956314,857.58,856.99,0.87215799]
[1766205058276,49.06956314,857.58,856.98,0.87215799]
[1766205059273,49.06956314,857.58,856.97,0.87215799]
[1766205060377,49.06956314,857.58,857.0,0.87215799]
[1766205062479,49.06956314,857.58,856.99,0.87215799]
[1766205062880,49.06956314,857.58,857.0,0.87215799]
[1766205063180,49.06956314,857.58,857.03,0.87215799]
[1766205063376,49.06956314,857.58,857.08,0.87215799]
[1766205064381,49.06956314,857.58,857.06,0.87215799]
[1766205065481,49.06956314,857.58,856.75,1.73907775]
[1766205065482,49.06956314,857.58,857.05,0.87215799]
[1766205067383,49.06956314,857.58,857.04,0.87215799]
[1766205068484,49.06956314,857.58,857.03,0.87215799]
[1766205069483,49.06956314,857.58,857.02,0.87215799]
[1766205069885,7.58125687,857.58,857.02,0.87215799]
[1766205071385,7.58125687,857.58,857.01,0.87215799]
[1766205072286,0.20291959,857.89,857.01,0.87215799]
[1766205073487,0.20291959,857.89,857.0,0.87215799]
[1766205075390,0.20291959,857.89,857.02,0.87215799]
[1766205077388,0.20291959,857.89,857.01,0.87215799]
[1766205078292,0.20291959,857.89,857.02,0.87215799]
[1766205078492,0.20291959,857.89,857.01,0.87215799]
[1766205083292,1.1671023,858.4,857.01,0.87215799]
[1766205083497,0.20285749,858.01,857.1,0.87215799]
[1766205083693,5.96785764,858.01,857.1,0.87215799]
[1766205084698,5.96785764,858.01,857.13,0.87215799]
[1766205087803,5.96785764,858.01,857.07,0.87215799]
[1766205089504,5.96785764,858.01,857.06,0.87215799]
[1766205090299,5.96785764,858.01,857.07,0.87215799]
[1766205092005,5.96785764,858.01,856.46,0.20295569]
[1766205092006,5.96785764,858.01,857.04,0.87215799]
[1766205092507,5.96785764,858.01,857.05,0.87215799]
[1766205093305,5.96785764,858.01,856.9,1.15938517]
[1766205093306,5.96785764,858.01,857.06,0.87215799]
[1766205095603,5.96785764,858.01,857.07,0.87215799]
[1766205097309,5.96785764,858.01,857.08,0.87215799]
[1766205098309,5.96785764,858.01,857.09,0.87215799]
[1766205100509,5.96785764,858.01,857.1,0.87215799]
[1766205102310,5.96785764,858.01,857.11,0.87215799]
[1766205102810,5.96785764,858.01,857.13,0.87215799]
[1766205104410,5.96785764,858.01,857.14,0.87215799]
[1766205105310,5.96785764,858.01,857.15,0.87215799]
[1766205106613,5.96785764,858.01,857.16,0.87215799]
[1766205108314,5.96785764,858.01,857.17,0.87215799]
[1766205109416,5.96785764,858.01,857.19,0.87215799]
[1766205109812,5.96785764,858.01,857.18,0.87215799]
[1766205110316,5.96785764,858.01,857.2,0.87215799]
[1766205112417,5.96785764,858.01,857.21,0.87215799]
[1766205113424,5.96785764,858.01,857.22,0.87215799]
[1766205115220,5.96785764,858.01,857.23,0.87215799]
[1766205117422,5.96785764,858.01,857.24,0.87215799]
[1766205118327,5.96785764,858.01,857.25,0.87215799]
[1766205121428,5.96785764,858.01,857.26,0.87215799]
[1766205122323,5.96785764,858.01,857.27,0.87215799]
[1766205122727,5.96785764,858.01,857.29,0.87215799]
[1766205124425,5.96785764,858.01,857.3,0.87215799]
[1766205125225,5.96785764,858.01,857.29,0.87215799]
[1766205125429,5.96785764,858.01,857.3,0.87215799]
[1766205130733,5.76500015,858.01,857.32,0.87215799]
[1766205142445,5.76500015,858.01,857.33,0.87215799]
[1766205143447,5.76500015,858.01,857.32,0.87215799]
[1766205145346,5.76500015,858.01,857.33,0.87215799]
[1766205167373,5.76500015,858.01,857.34,0.87215799]
[1766205167569,5.76500015,858.01,857.35,0.87215799]
[1766205175278,5.76500015,858.01,857.4,0.87215799]
[1766205178277,5.76500015,858.01,857.39,0.87215799]
[1766205178581,5.76500015,858.01,857.4,0.87215799]
[1766205178781,5.76500015,858.01,857.43,0.87215799]
[1766205179082,5.76500015,858.01,857.46,0.87215799]
[1766205181381,5.76500015,858.01,857.5,0.87215799]
[1766205182584,5.76500015,858.01,857.49,0.87215799]
[1766205184286,5.76500015,858.01,857.48,0.87215799]
[1766205185385,5.76500015,858.01,857.47,0.87215799]
[1766205187490,5.76500015,858.01,857.46,0.87215799]
[1766205187793,5.76500015,858.01,857.56,0.87215799]
[1766205188390,5.76500015,858.01,857.55,0.87215799]
[1766205189490,5.76500015,858.01,856.98,4.20186984]
[1766205189491,5.76500015,858.01,857.54,0.87215799]
[1766205190492,5.76500015,858.01,857.64,0.87215799]
[1766205191395,5.76500015,858.01,856.98,4.20186984]
[1766205191396,5.76500015,858.01,857.62,0.87215799]
[1766205192492,5.76500015,858.01,857.61,0.87215799]
[1766205193395,5.76500015,858.01,857.6,0.87215799]
[1766205194300,5.76500015,858.01,857.59,0.87215799]
[1766205194595,5.76500015,858.01,857.58,0.87215799]
[1766205194799,5.76500015,858.01,857.59,0.87215799]
[1766205195299,5.76500015,858.01,857.58,0.87215799]
[1766205196200,5.76500015,858.01,857.57,0.87215799]
[1766205196903,5.76500015,858.01,857.58,0.87215799]
[1766205197303,5.76500015,858.01,857.57,0.87215799]
[1766205198406,5.76500015,858.01,857.56,0.87215799]
[1766205199302,5.76500015,858.01,857.55,0.87215799]
[1766205200402,5.76500015,858.01,857.54,0.87215799]
[1766205202408,5.76500015,858.01,857.53,0.87215799]
[1766205204412,5.76500015,858.01,857.52,0.87215799]
[1766205204807,32.17708055,858.17,857.52,0.87215799]
[1766205207411,0.01128755,858.87,857.51,0.87215799]
[1766205207612,1.1671023,858.9,857.51,0.87215799]
[1766205207812,0.20274758,858.54,857.51,0.87215799]
[1766205208016,6.85424039,858.54,857.51,0.87215799]
[1766205210619,6.85424039,858.54,857.52,0.87215799]
[1766205217127,6.85424039,858.54,857.56,0.87215799]
[1766205222226,6.85424039,858.54,857.57,0.87215799]
[1766205225228,6.85424039,858.54,857.58,0.87215799]
[1766205225428,6.85424039,858.54,857.48,0.87215799]
[1766205226125,6.85424039,858.54,857.45,0.87215799]
[1766205227330,6.85424039,858.54,857.46,0.87215799]
[1766205228329,6.85424039,858.54,857.47,0.87215799]
[1766205230331,6.85424039,858.54,857.48,0.87215799]
[1766205231329,6.85424039,858.54,857.49,0.87215799]
[1766205231729,6.85424039,858.54,857.47,0.87215799]
[1766205232234,6.85424039,858.54,857.48,0.87215799]
[1766205232531,6.85424039,858.54,857.45,0.87215799]
[1766205233328,6.85424039,858.54,857.46,0.87215799]
[1766205234329,6.85424039,858.54,857.47,0.87215799]
[1766205235434,6.85424039,858.54,857.48,0.87215799]
[1766205236336,6.85424039,858.54,857.49,0.87215799]
[1766205237238,6.85424039,858.54,857.5,0.87215799]
[1766205238439,6.85424039,858.54,857.52,0.87215799]
[1766205241341,6.85424039,858.54,857.53,0.87215799]
[1766205242742,6.85424039,858.54,857.53,0.8723232]
[1766205244338,6.85424039,858.54,857.54,0.8723232]
[1766205246346,6.85424039,858.54,857.55,0.8723232]
[1766205254853,6.85424039,858.54,857.54,0.8723232]
[1766205273268,6.85424039,858.54,857.55,0.8723232]
[1766205277471,6.85424039,858.54,857.56,0.8723232]
[1766205279372,6.85424039,858.54,857.57,0.8723232]
[1766205281375,6.85424039,858.54,857.58,0.8723232]
[1766205282474,6.85424039,858.54,857.59,0.8723232]
[1766205283380,6.85424039,858.54,857.6,0.8723232]
[1766205284481,6.85424039,858.54,857.61,0.8723232]
[1766205285382,8.02134269,858.54,857.63,0.8723232]
[1766205286276,1.1671023,858.53,857.63,0.8723232]
[1766205289379,1.1671023,858.53,857.64,0.8723232]
[1766205289584,1.1671023,858.52,857.64,0.8723232]
[1766205291386,1.1671023,858.51,857.65,0.8723232]
[1766205297296,6.85424039,858.54,857.7,0.8723232]
[1766205298198,6.85424039,858.54,857.69,0.8723232]
[1766205301999,6.85424039,858.54,857.68,0.8723232]
[1766205302995,6.85424039,858.54,857.71,0.8723232]
[1766205304402,6.85424039,858.54,857.7,0.8723232]
[1766205307403,6.85424039,858.54,857.69,0.8723232]
[1766205309199,6.85424039,858.54,857.72,0.8723232]
[1766205310400,6.85424039,858.54,857.71,0.8723232]
[1766205311304,6.85424039,858.54,857.74,0.8723232]
[1766205312407,6.85424039,858.54,857.73,0.8723232]
[1766205314406,6.85424039,858.54,857.72,0.8723232]
[1766205314806,6.85424039,858.54,857.72,0.87331895]
[1766205318311,6.85424039,858.54,857.71,0.87331895]
[1766205323420,6.85424039,858.54,857.7,0.87331895]
[1766205323721,6.85424039,858.54,857.72,0.87331895]
[1766205328330,6.85424039,858.54,857.71,0.87331895]
[1766205329929,0.20274758,858.54,857.75,0.87331895]
[1766205330223,0.20274758,858.54,857.8,0.87331895]
[1766205331526,0.20274758,858.54,857.79,0.87331895]
[1766205331729,38.86419671,858.69,857.79,0.87331895]
[1766205332025,0.20272101,858.63,857.79,0.87331895]
[1766205333029,0.20272101,858.63,857.78,0.87331895]
[1766205333223,6.5331164,858.63,857.72,0.87331895]
[1766205333428,6.5331164,858.63,857.68,0.87331895]
[1766205337730,6.5331164,858.63,857.7,0.87331895]
[1766205339030,6.5331164,858.63,857.7,0.87238609]
[1766205343030,6.5331164,858.63,857.55,1.15938517]
[1766205343235,6.5331164,858.63,857.7,0.87247482]
[1766205344137,6.5331164,858.63,857.71,0.87247482]
[1766205345036,6.5331164,858.63,857.7,0.87247482]
[1766205345431,6.5331164,858.63,857.71,0.87247482]
[1766205347338,32.25190858,858.59,857.71,0.87247482]
[1766205350238,32.25190858,858.59,857.72,0.87247482]
[1766205353140,32.25190858,858.59,857.73,0.87247482]
[1766205356137,32.25190858,858.59,857.74,0.87247482]
[1766205357339,32.25190858,858.59,857.75,0.87247482]
[1766205362445,32.25190858,858.59,857.76,0.87247482]
[1766205363946,32.25190858,858.59,857.82,0.87247482]
[1766205365246,32.25190858,858.59,857.87,0.87247482]
[1766205366247,32.25190858,858.59,857.71,1.15938517]
[1766205366248,32.25190858,858.59,857.86,0.87247482]
[1766205366448,32.25190858,858.59,857.87,0.87247482]
[1766205367150,32.25190858,858.59,857.86,0.87247482]
[1766205371250,32.25190858,858.59,857.83,0.87247482]
[1766205371446,32.25190858,858.59,857.78,0.87247482]
[1766205383058,32.25190858,858.59,857.83,0.87247482]
[1766205387759,32.25190858,858.59,857.86,0.87247482]
[1766205388158,32.25190858,858.59,857.85,0.87247482]
[1766205394065,32.25190858,858.59,857.82,0.87247482]
[1766205394462,32.25190858,858.59,857.8,0.87247482]
[1766205399166,32.25190858,858.59,857.8,0.87328728]
[1766205406372,32.25190858,858.59,857.65,1.15938517]
[1766205406373,32.25190858,858.59,857.75,0.87328728]
[1766205412275,32.25190858,858.59,857.76,0.87328728]
[1766205413080,32.25190858,858.59,857.74,0.87328728]
[1766205414182,32.25190858,858.59,857.73,0.87328728]